[Event "*** Titled Tuesday Blitz"]
[Site "Chess.com"]
[Date "2019.11.05"]
[Round "7"]
[White "joppie2"]
[Black "GadimbayliA"]
[Result "0-1"]
[WhiteElo "2882"]
[BlackElo "2935"]
[TimeControl "180+2"]
[EndTime "14:38:57 PST"]
[Termination "GadimbayliA won by resignation"]

1. e4 {[%clk 0:03:01.9]} 1... e5 {[%clk 0:03:00.1]} 2. Nf3 {[%clk 0:03:02.6]}
2... Nf6 {[%clk 0:03:01.5]} 3. d4 {[%clk 0:03:02.2]} 3... Nxe4 {[%clk
0:03:02.4]} 4. Bd3 {[%clk 0:03:02.5]} 4... d5 {[%clk 0:03:03.4]} 5. Nxe5 {[%clk
0:03:03.9]} 5... Nd7 {[%clk 0:03:03.8]} 6. Nc3 {[%clk 0:03:05.4]} 6... Nxe5
{[%clk 0:02:54.5]} 7. dxe5 {[%clk 0:03:06]} 7... Bb4 {[%clk 0:02:55.7]} 8. O-O
{[%clk 0:03:06]} 8... Bxc3 {[%clk 0:02:52.2]} 9. bxc3 {[%clk 0:03:07.9]} 9...
O-O {[%clk 0:02:53.5]} 10. c4 {[%clk 0:03:08.2]} 10... Be6 {[%clk 0:02:51.8]}
11. Qf3 {[%clk 0:02:59.5]} 11... Nc5 {[%clk 0:02:48.5]} 12. Ba3 {[%clk
0:02:59.8]} 12... Nxd3 {[%clk 0:02:45.6]} 13. Bxf8 {[%clk 0:02:49.4]} 13... Nxe5
{[%clk 0:02:42.1]} 14. Qg3 {[%clk 0:02:48.6]} 14... Ng6 {[%clk 0:02:40.6]} 15.
Bb4 {[%clk 0:02:48.2]} 15... d4 {[%clk 0:02:38.4]} 16. Rad1 {[%clk 0:02:44.1]}
16... Bxc4 {[%clk 0:02:35.7]} 17. Rfe1 {[%clk 0:02:39.3]} 17... b6 {[%clk
0:02:36.7]} 18. a4 {[%clk 0:02:24.4]} 18... c5 {[%clk 0:02:34.7]} 19. Bd2 {[%clk
0:02:25.7]} 19... Qd7 {[%clk 0:02:29.4]} 20. a5 {[%clk 0:02:24.1]} 20... b5
{[%clk 0:02:29.3]} 21. h4 {[%clk 0:02:24.5]} 21... h5 {[%clk 0:02:26.9]} 22. c3
{[%clk 0:02:13.1]} 22... d3 {[%clk 0:02:12.7]} 23. Be3 {[%clk 0:02:11]} 23...
Qd5 {[%clk 0:02:08]} 24. a6 {[%clk 0:02:06.2]} 24... Bb3 {[%clk 0:01:51.6]} 25.
Rd2 {[%clk 0:02:05.7]} 25... Bc2 {[%clk 0:01:52.8]} 26. Rc1 {[%clk 0:02:02.2]}
26... Qc4 {[%clk 0:01:44.9]} 27. Qg5 {[%clk 0:01:25.7]} 27... b4 {[%clk
0:01:24.4]} 28. cxb4 {[%clk 0:01:24.5]} 28... cxb4 {[%clk 0:01:25.2]} 29. g4
{[%clk 0:00:37.8]} 29... Qxg4+ {[%clk 0:01:14]} 30. Qxg4 {[%clk 0:00:38.3]}
30... hxg4 {[%clk 0:01:15.9]} 31. Rdxc2 {[%clk 0:00:36.8]} 31... dxc2 {[%clk
0:01:12.4]} 32. Rxc2 {[%clk 0:00:38.7]} 32... Nxh4 {[%clk 0:01:10.6]} 33. Rc4
{[%clk 0:00:38.3]} 33... Nf5 {[%clk 0:01:05.4]} 34. Bf4 {[%clk 0:00:30.7]} 34...
Re8 {[%clk 0:00:53.1]} 35. Rxb4 {[%clk 0:00:29.7]} 35... Re1+ {[%clk 0:00:54.2]}
36. Kg2 {[%clk 0:00:30.1]} 36... Ra1 {[%clk 0:00:55.7]} 37. Rb5 {[%clk 0:00:24]}
37... Nd4 {[%clk 0:00:45.1]} 38. Rb8+ {[%clk 0:00:23.9]} 38... Kh7 {[%clk
0:00:45.9]} 39. Be5 {[%clk 0:00:25.8]} 39... Nc6 {[%clk 0:00:41.7]} 40. Bxa1
{[%clk 0:00:19.7]} 40... Nxb8 {[%clk 0:00:42.5]} 41. Kg3 {[%clk 0:00:20]} 41...
f5 {[%clk 0:00:37.7]} 42. Bd4 {[%clk 0:00:19.3]} 42... Nc6 {[%clk 0:00:31.6]}
43. Be3 {[%clk 0:00:17.2]} 43... Kg6 {[%clk 0:00:32.9]} 44. Kh4 {[%clk
0:00:17.8]} 44... Kf6 {[%clk 0:00:31.3]} 45. Kh5 {[%clk 0:00:18.5]} 45... Ke5
{[%clk 0:00:29.7]} 46. Kg5 {[%clk 0:00:19]} 46... Ke4 {[%clk 0:00:28.4]} 47. Bc5
{[%clk 0:00:20.5]} 47... Ke5 {[%clk 0:00:24.4]} 48. Kg6 {[%clk 0:00:19.3]} 48...
Ke4 {[%clk 0:00:17.5]} 49. Kg5 {[%clk 0:00:17.9]} 49... Nb8 {[%clk 0:00:17.6]}
50. Bxa7 {[%clk 0:00:16.5]} 50... Nxa6 {[%clk 0:00:18.7]} 51. Kg6 {[%clk
0:00:18.1]} 51... Nb4 {[%clk 0:00:17.7]} 52. Kxg7 {[%clk 0:00:18.6]} 52... f4
{[%clk 0:00:18.6]} 53. Kg6 {[%clk 0:00:19.9]} 53... Nd3 {[%clk 0:00:18.8]} 54.
Kg5 {[%clk 0:00:19.7]} 54... Kf3 {[%clk 0:00:20]} 55. Bb8 {[%clk 0:00:17.8]}
55... Nxf2 {[%clk 0:00:21.3]} 56. Kf5 {[%clk 0:00:18.2]} 56... Nh3 {[%clk
0:00:23.2]} 57. Ba7 {[%clk 0:00:15.4]} 57... g3 {[%clk 0:00:24.2]} 58. Bb6
{[%clk 0:00:16.7]} 58... g2 {[%clk 0:00:25.3]} 59. Ba7 {[%clk 0:00:18.3]} 59...
g1=Q {[%clk 0:00:26.5]} 0-1

[Event "*** Titled Tuesday Blitz"]
[Site "Chess.com"]
[Date "2019.11.05"]
[Round "7"]
[White "FelixJoseYnojosa"]
[Black "ural58"]
[Result "1-0"]
[WhiteElo "2639"]
[BlackElo "2458"]
[TimeControl "180+2"]
[EndTime "14:38:59 PST"]
[Termination "FelixJoseYnojosa won by resignation"]

1. c4 {[%clk 0:03:01.9]} 1... e5 {[%clk 0:02:59]} 2. Nc3 {[%clk 0:03:03.4]} 2...
Nc6 {[%clk 0:02:59.2]} 3. Nf3 {[%clk 0:03:02.7]} 3... Bb4 {[%clk 0:02:59.2]} 4.
e3 {[%clk 0:02:59.9]} 4... Bxc3 {[%clk 0:02:54.1]} 5. bxc3 {[%clk 0:03:00.8]}
5... e4 {[%clk 0:02:53]} 6. Nd4 {[%clk 0:02:59.7]} 6... Nf6 {[%clk 0:02:52.1]}
7. Be2 {[%clk 0:02:52.8]} 7... Ne5 {[%clk 0:02:50.4]} 8. O-O {[%clk 0:02:49.9]}
8... O-O {[%clk 0:02:50.5]} 9. f3 {[%clk 0:02:51.1]} 9... d6 {[%clk 0:02:43.4]}
10. Qc2 {[%clk 0:02:44.4]} 10... c5 {[%clk 0:02:38.1]} 11. Nb3 {[%clk
0:02:43.6]} 11... Bf5 {[%clk 0:02:04.5]} 12. fxe4 {[%clk 0:02:42.5]} 12... Bxe4
{[%clk 0:02:05.3]} 13. d3 {[%clk 0:02:43.9]} 13... Bg6 {[%clk 0:02:06]} 14. e4
{[%clk 0:02:45.2]} 14... Qd7 {[%clk 0:02:01.8]} 15. Bg5 {[%clk 0:02:42.8]} 15...
Ne8 {[%clk 0:01:52.6]} 16. Nd2 {[%clk 0:02:43.7]} 16... Nc7 {[%clk 0:01:50.2]}
17. h3 {[%clk 0:02:22]} 17... Ne6 {[%clk 0:01:48.5]} 18. Be3 {[%clk 0:02:23]}
18... f6 {[%clk 0:01:44.9]} 19. d4 {[%clk 0:02:07]} 19... Nf7 {[%clk 0:01:42.2]}
20. Bg4 {[%clk 0:01:57.8]} 20... Qe7 {[%clk 0:01:40.5]} 21. Rae1 {[%clk
0:01:52.9]} 21... Rfe8 {[%clk 0:01:40.4]} 22. h4 {[%clk 0:01:46.6]} 22... h5
{[%clk 0:01:38.1]} 23. Bf5 {[%clk 0:01:47.3]} 23... Nf8 {[%clk 0:01:35.9]} 24.
Qd1 {[%clk 0:01:45.8]} 24... cxd4 {[%clk 0:01:31.1]} 25. cxd4 {[%clk 0:01:46.3]}
25... Bxf5 {[%clk 0:01:02.4]} 26. exf5 {[%clk 0:01:48.2]} 26... d5 {[%clk
0:00:51.9]} 27. c5 {[%clk 0:01:42.8]} 27... b6 {[%clk 0:00:49]} 28. Nb3 {[%clk
0:01:22]} 28... Qd7 {[%clk 0:00:44.9]} 29. Qxh5 {[%clk 0:01:21.4]} 29... Re4
{[%clk 0:00:43.8]} 30. Bf2 {[%clk 0:00:41.8]} 30... Rae8 {[%clk 0:00:43.6]} 31.
Rc1 {[%clk 0:00:42.8]} 31... Qa4 {[%clk 0:00:41]} 32. Rc2 {[%clk 0:00:28.3]}
32... Nh6 {[%clk 0:00:20.8]} 33. Qf3 {[%clk 0:00:12]} 33... Ng4 {[%clk
0:00:20.7]} 34. c6 {[%clk 0:00:13.4]} 34... Rc8 {[%clk 0:00:20.9]} 35. c7 {[%clk
0:00:14.6]} 35... Qd7 {[%clk 0:00:20.4]} 36. Rfc1 {[%clk 0:00:15.3]} 36... Nh6
{[%clk 0:00:16.5]} 37. Nd2 {[%clk 0:00:14.9]} 37... Re7 {[%clk 0:00:16.7]} 38.
g4 {[%clk 0:00:15.8]} 38... Nf7 {[%clk 0:00:16.9]} 39. Bg3 {[%clk 0:00:16]}
39... Nd6 {[%clk 0:00:17.3]} 40. Qf4 {[%clk 0:00:16.4]} 40... Nb5 {[%clk
0:00:17.5]} 41. a4 {[%clk 0:00:14.8]} 41... Na3 {[%clk 0:00:17.9]} 42. Rc6
{[%clk 0:00:12.5]} 42... Re2 {[%clk 0:00:17.7]} 43. Qd6 {[%clk 0:00:11.8]} 43...
Qxd6 {[%clk 0:00:16.6]} 44. Rxd6 {[%clk 0:00:12]} 44... Rxd2 {[%clk 0:00:17.7]}
45. Rd8 {[%clk 0:00:13.1]} 45... Rxc7 {[%clk 0:00:12]} 46. Rxc7 {[%clk 0:00:15]}
46... Rd3 {[%clk 0:00:09.2]} 47. Bd6 {[%clk 0:00:15.4]} 47... Nc4 {[%clk
0:00:06.8]} 48. Bxf8 {[%clk 0:00:16.3]} 48... Rd1+ {[%clk 0:00:06.8]} 49. Kf2
{[%clk 0:00:17.3]} 49... Rd2+ {[%clk 0:00:08.7]} 50. Ke1 {[%clk 0:00:18.7]}
50... Rxd4 {[%clk 0:00:10.6]} 51. Bxg7+ {[%clk 0:00:19.4]} 1-0

[Event "*** Titled Tuesday Blitz"]
[Site "Chess.com"]
[Date "2019.11.05"]
[Round "7"]
[White "GHANDEEVAM2003"]
[Black "MITerryble"]
[Result "1/2-1/2"]
[WhiteElo "2999"]
[BlackElo "2873"]
[TimeControl "180+2"]
[EndTime "14:39:10 PST"]
[Termination "Game drawn by repetition"]

1. Nf3 {[%clk 0:03:01.9]} 1... Nf6 {[%clk 0:03:00.9]} 2. c4 {[%clk 0:03:00.8]}
2... b6 {[%clk 0:02:57.1]} 3. g3 {[%clk 0:03:00.4]} 3... Bb7 {[%clk 0:02:58.1]}
4. Bg2 {[%clk 0:03:01.6]} 4... g6 {[%clk 0:02:59.7]} 5. O-O {[%clk 0:03:02]}
5... Bg7 {[%clk 0:03:01.1]} 6. d4 {[%clk 0:03:03]} 6... e6 {[%clk 0:02:58.7]} 7.
Nc3 {[%clk 0:03:02.6]} 7... Ne4 {[%clk 0:02:59.8]} 8. Qc2 {[%clk 0:02:51.5]}
8... Nxc3 {[%clk 0:02:59]} 9. Qxc3 {[%clk 0:02:50.4]} 9... O-O {[%clk
0:02:58.4]} 10. Rd1 {[%clk 0:02:48]} 10... d6 {[%clk 0:02:56]} 11. Bg5 {[%clk
0:02:44.7]} 11... Qc8 {[%clk 0:02:51.8]} 12. Qd2 {[%clk 0:02:38.8]} 12... Nd7
{[%clk 0:02:50.4]} 13. Bh6 {[%clk 0:02:37.4]} 13... Nf6 {[%clk 0:02:51.7]} 14.
Rac1 {[%clk 0:02:29.4]} 14... Ne4 {[%clk 0:02:30.6]} 15. Qf4 {[%clk 0:02:29.1]}
15... f5 {[%clk 0:02:30]} 16. Bxg7 {[%clk 0:02:21.1]} 16... Kxg7 {[%clk
0:02:31.9]} 17. Ng5 {[%clk 0:02:22.5]} 17... Nxg5 {[%clk 0:02:31.3]} 18. Qxg5
{[%clk 0:02:22.5]} 18... Bxg2 {[%clk 0:02:31.5]} 19. Kxg2 {[%clk 0:02:24.4]}
19... h6 {[%clk 0:02:22]} 20. Qe3 {[%clk 0:02:24.5]} 20... Qb7+ {[%clk
0:02:21.3]} 21. f3 {[%clk 0:02:24]} 21... Rae8 {[%clk 0:02:22]} 22. c5 {[%clk
0:02:21]} 22... Rf7 {[%clk 0:02:19.7]} 23. cxd6 {[%clk 0:02:05.5]} 23... cxd6
{[%clk 0:02:20.2]} 24. d5 {[%clk 0:02:06.6]} 24... Rfe7 {[%clk 0:02:13.7]} 25.
Qc3+ {[%clk 0:01:24.5]} 25... Kf7 {[%clk 0:01:51.6]} 26. Qc6 {[%clk 0:00:40.8]}
26... exd5 {[%clk 0:01:14.9]} 27. Qxb7 {[%clk 0:00:41]} 27... Rxb7 {[%clk
0:01:15.5]} 28. Kf2 {[%clk 0:00:42]} 28... Rbe7 {[%clk 0:01:02.1]} 29. Rc2
{[%clk 0:00:43.1]} 29... Ke6 {[%clk 0:00:58.1]} 30. Rd3 {[%clk 0:00:33.7]} 30...
g5 {[%clk 0:00:54.2]} 31. Rcd2 {[%clk 0:00:32.7]} 31... Rd7 {[%clk 0:00:47.4]}
32. Rxd5 {[%clk 0:00:33.1]} 32... Rc8 {[%clk 0:00:49]} 33. R5d3 {[%clk
0:00:27.6]} 33... Rc5 {[%clk 0:00:48.1]} 34. b4 {[%clk 0:00:28.1]} 34... Rc4
{[%clk 0:00:44.5]} 35. a3 {[%clk 0:00:29.4]} 35... d5 {[%clk 0:00:45.2]} 36.
Re3+ {[%clk 0:00:28]} 36... Kf6 {[%clk 0:00:45.5]} 37. Re8 {[%clk 0:00:29]}
37... Rc3 {[%clk 0:00:45.8]} 38. Rd3 {[%clk 0:00:28.1]} 38... Rxd3 {[%clk
0:00:42.3]} 39. exd3 {[%clk 0:00:30]} 39... Rc7 {[%clk 0:00:43.1]} 40. Ke3
{[%clk 0:00:26.1]} 40... Rc3 {[%clk 0:00:43.3]} 41. a4 {[%clk 0:00:22.9]} 41...
Ra3 {[%clk 0:00:41.8]} 42. a5 {[%clk 0:00:22.6]} 42... bxa5 {[%clk 0:00:40.8]}
43. bxa5 {[%clk 0:00:24.5]} 43... Ra4 {[%clk 0:00:38.1]} 44. Rd8 {[%clk
0:00:23.2]} 44... Ke6 {[%clk 0:00:36.8]} 45. f4 {[%clk 0:00:21.3]} 45... gxf4+
{[%clk 0:00:24.3]} 46. gxf4 {[%clk 0:00:23.2]} 46... h5 {[%clk 0:00:25.2]} 47.
h4 {[%clk 0:00:22.8]} 47... a6 {[%clk 0:00:26.3]} 48. Rh8 {[%clk 0:00:20.1]}
48... d4+ {[%clk 0:00:26.8]} 49. Kf3 {[%clk 0:00:21.6]} 49... Rxa5 {[%clk
0:00:24.1]} 50. Rh6+ {[%clk 0:00:19.8]} 50... Kf7 {[%clk 0:00:24.7]} 51. Rxh5
{[%clk 0:00:21]} 51... Kg6 {[%clk 0:00:21.5]} 52. Rg5+ {[%clk 0:00:21.7]} 52...
Kf6 {[%clk 0:00:23.1]} 53. h5 {[%clk 0:00:21.9]} 53... Ra3 {[%clk 0:00:24.3]}
54. h6 {[%clk 0:00:17.2]} 54... Rxd3+ {[%clk 0:00:25.3]} 55. Kg2 {[%clk
0:00:18.7]} 55... Rd2+ {[%clk 0:00:26.5]} 56. Kh3 {[%clk 0:00:18]} 56... Rd3+
{[%clk 0:00:26.4]} 57. Kh2 {[%clk 0:00:17.6]} 57... Rd2+ {[%clk 0:00:27.7]} 58.
Kh3 {[%clk 0:00:18.2]} 58... Rd3+ {[%clk 0:00:29]} 59. Kh2 {[%clk 0:00:15.2]}
59... Rd2+ {[%clk 0:00:19.4]} 60. Kh3 {[%clk 0:00:16.4]} 1/2-1/2

[Event "*** Titled Tuesday Blitz"]
[Site "Chess.com"]
[Date "2019.11.05"]
[Round "7"]
[White "Godzillator"]
[Black "Alex_Terzi"]
[Result "0-1"]
[WhiteElo "2299"]
[BlackElo "2499"]
[TimeControl "180+2"]
[EndTime "14:39:20 PST"]
[Termination "Alex_Terzi won by checkmate"]

1. d4 {[%clk 0:03:01.9]} 1... Nf6 {[%clk 0:03:01]} 2. c4 {[%clk 0:03:02.9]} 2...
c5 {[%clk 0:03:02.6]} 3. d5 {[%clk 0:03:03.6]} 3... b5 {[%clk 0:03:04.1]} 4.
cxb5 {[%clk 0:03:05]} 4... a6 {[%clk 0:03:05.7]} 5. bxa6 {[%clk 0:03:06.4]} 5...
g6 {[%clk 0:03:07.2]} 6. Nc3 {[%clk 0:03:05.2]} 6... Bg7 {[%clk 0:03:08.2]} 7.
e4 {[%clk 0:03:06.5]} 7... Qa5 {[%clk 0:03:07.1]} 8. Bd2 {[%clk 0:03:05]} 8...
Qb4 {[%clk 0:02:59.8]} 9. Qc2 {[%clk 0:03:04.7]} 9... Bxa6 {[%clk 0:02:55.6]}
10. Bxa6 {[%clk 0:03:04.8]} 10... Nxa6 {[%clk 0:02:55.9]} 11. Nge2 {[%clk
0:03:04.2]} 11... Rb8 {[%clk 0:02:50.6]} 12. b3 {[%clk 0:03:00.6]} 12... O-O
{[%clk 0:02:33.8]} 13. O-O {[%clk 0:03:00.2]} 13... d6 {[%clk 0:02:31.9]} 14. f3
{[%clk 0:03:00.4]} 14... Qb7 {[%clk 0:02:28.1]} 15. Kh1 {[%clk 0:02:51.5]} 15...
Nd7 {[%clk 0:02:27.3]} 16. Rab1 {[%clk 0:02:50.5]} 16... Nb4 {[%clk 0:02:26.9]}
17. Qd1 {[%clk 0:02:50]} 17... Qa6 {[%clk 0:02:24.3]} 18. a4 {[%clk 0:02:48.7]}
18... Ne5 {[%clk 0:02:09]} 19. Nb5 {[%clk 0:02:48.8]} 19... Ned3 {[%clk
0:02:07.4]} 20. Bxb4 {[%clk 0:02:47.5]} 20... Nxb4 {[%clk 0:02:07.3]} 21. Rc1
{[%clk 0:02:37.1]} 21... Rxb5 {[%clk 0:02:06.5]} 22. axb5 {[%clk 0:02:37.3]}
22... Qxb5 {[%clk 0:02:08.4]} 23. Nc3 {[%clk 0:02:37.1]} 23... Qa6 {[%clk
0:01:51.9]} 24. Qe2 {[%clk 0:02:37.7]} 24... Qb7 {[%clk 0:01:46.6]} 25. Qc4
{[%clk 0:02:36.5]} 25... Rb8 {[%clk 0:01:42.6]} 26. Na4 {[%clk 0:02:28.1]} 26...
Qa7 {[%clk 0:01:31.5]} 27. f4 {[%clk 0:02:26.3]} 27... Na2 {[%clk 0:01:26.6]}
28. Rc2 {[%clk 0:02:21.3]} 28... Nb4 {[%clk 0:01:27.4]} 29. Re2 {[%clk
0:02:21.6]} 29... Bd4 {[%clk 0:01:21.1]} 30. e5 {[%clk 0:02:22.4]} 30... Qa6
{[%clk 0:01:15.6]} 31. exd6 {[%clk 0:02:16.4]} 31... exd6 {[%clk 0:01:15.2]} 32.
Rfe1 {[%clk 0:01:57.6]} 32... Qxc4 {[%clk 0:01:14.6]} 33. bxc4 {[%clk
0:01:56.2]} 33... Kf8 {[%clk 0:01:05.6]} 34. Nb2 {[%clk 0:01:50.4]} 34... Ra8
{[%clk 0:00:48]} 35. Nd1 {[%clk 0:01:47.1]} 35... Nd3 {[%clk 0:00:46]} 36. Rf1
{[%clk 0:01:47.7]} 36... Ra1 {[%clk 0:00:43.9]} 37. Ne3 {[%clk 0:01:44.6]} 37...
Rxf1+ {[%clk 0:00:16.5]} 38. Nxf1 {[%clk 0:01:45.1]} 38... Nf2+ {[%clk
0:00:17.8]} 39. Rxf2 {[%clk 0:01:38.1]} 39... Bxf2 {[%clk 0:00:19.7]} 40. Nd2
{[%clk 0:01:38.8]} 40... Ke7 {[%clk 0:00:20]} 41. Ne4 {[%clk 0:01:36.6]} 41...
Be3 {[%clk 0:00:20.8]} 42. g3 {[%clk 0:01:37]} 42... f5 {[%clk 0:00:21.6]} 43.
Nc3 {[%clk 0:01:36.7]} 43... Bd2 {[%clk 0:00:21.2]} 44. Nb5 {[%clk 0:01:37.4]}
44... g5 {[%clk 0:00:22.2]} 45. fxg5 {[%clk 0:01:37.6]} 45... Bxg5 {[%clk
0:00:24.1]} 46. Kg2 {[%clk 0:01:38.8]} 46... h5 {[%clk 0:00:23.6]} 47. h4 {[%clk
0:01:37.3]} 47... Bd2 {[%clk 0:00:24.1]} 48. Kf3 {[%clk 0:01:38.4]} 48... Bc1
{[%clk 0:00:25.2]} 49. Nc7 {[%clk 0:01:38.1]} 49... Kf6 {[%clk 0:00:25.9]} 50.
Ne6 {[%clk 0:01:35.9]} 50... Ke5 {[%clk 0:00:26.1]} 51. Ng7 {[%clk 0:01:37.1]}
51... Bh6 {[%clk 0:00:23.1]} 52. Nxh5 {[%clk 0:01:36.4]} 52... Kd4 {[%clk
0:00:24.2]} 53. Nf6 {[%clk 0:01:14]} 53... Kxc4 {[%clk 0:00:23.8]} 54. Ng8
{[%clk 0:01:15.1]} 54... Bg7 {[%clk 0:00:23.7]} 55. Kf4 {[%clk 0:01:15.7]} 55...
Kd3 {[%clk 0:00:21.3]} 56. Ne7 {[%clk 0:01:15.2]} 56... c4 {[%clk 0:00:21.6]}
57. Nxf5 {[%clk 0:01:16.4]} 57... c3 {[%clk 0:00:21]} 58. Nxg7 {[%clk
0:01:00.4]} 58... c2 {[%clk 0:00:21.8]} 59. Ne6 {[%clk 0:01:00.3]} 59... c1=Q+
{[%clk 0:00:23.7]} 60. Kf5 {[%clk 0:01:00]} 60... Qf1+ {[%clk 0:00:24.7]} 61.
Nf4+ {[%clk 0:01:00.6]} 61... Kd4 {[%clk 0:00:25.1]} 62. h5 {[%clk 0:01:01.1]}
62... Qb1+ {[%clk 0:00:26.7]} 63. Kg5 {[%clk 0:01:01.3]} 63... Ke5 {[%clk
0:00:27]} 64. h6 {[%clk 0:01:01.7]} 64... Qh7 {[%clk 0:00:27.9]} 65. Kh5 {[%clk
0:00:55.8]} 65... Qf7+ {[%clk 0:00:27.4]} 66. Kh4 {[%clk 0:00:54.1]} 66... Kf5
{[%clk 0:00:26.4]} 67. Ne6 {[%clk 0:00:51]} 67... Qf6+ {[%clk 0:00:26.7]} 68.
Kh5 {[%clk 0:00:50]} 68... Qg6+ {[%clk 0:00:27.1]} 69. Kh4 {[%clk 0:00:48.6]}
69... Qg4# {[%clk 0:00:29]} 0-1

[Event "*** Titled Tuesday Blitz"]
[Site "Chess.com"]
[Date "2019.11.05"]
[Round "7"]
[White "Korchmar_Vasiliy"]
[Black "platy3"]
[Result "1/2-1/2"]
[WhiteElo "2730"]
[BlackElo "2900"]
[TimeControl "180+2"]
[EndTime "14:39:23 PST"]
[Termination "Game drawn - insufficient material"]

1. d4 {[%clk 0:03:01.3]} 1... Nf6 {[%clk 0:03:00.9]} 2. c4 {[%clk 0:03:02.6]}
2... e6 {[%clk 0:03:02.5]} 3. g3 {[%clk 0:03:03.1]} 3... d5 {[%clk 0:03:00.3]}
4. Bg2 {[%clk 0:03:03.9]} 4... dxc4 {[%clk 0:03:01.7]} 5. Nf3 {[%clk 0:03:04.8]}
5... c6 {[%clk 0:02:58.6]} 6. O-O {[%clk 0:03:05.2]} 6... b5 {[%clk 0:02:50.9]}
7. Ne5 {[%clk 0:03:06.3]} 7... Bb7 {[%clk 0:02:50.7]} 8. b3 {[%clk 0:03:07.1]}
8... cxb3 {[%clk 0:02:49.3]} 9. axb3 {[%clk 0:03:09]} 9... Be7 {[%clk
0:02:47.8]} 10. Nc3 {[%clk 0:03:09.9]} 10... a6 {[%clk 0:02:47.3]} 11. Bb2
{[%clk 0:03:07.4]} 11... O-O {[%clk 0:02:47.3]} 12. Ne4 {[%clk 0:03:08.7]} 12...
Qb6 {[%clk 0:02:39]} 13. Qc2 {[%clk 0:03:04.6]} 13... Rc8 {[%clk 0:02:23.1]} 14.
Rfc1 {[%clk 0:03:05]} 14... Nbd7 {[%clk 0:02:16.6]} 15. Ng5 {[%clk 0:02:54.6]}
15... Nf8 {[%clk 0:01:59.9]} 16. Ngxf7 {[%clk 0:02:54.9]} 16... c5 {[%clk
0:02:00.8]} 17. Bxb7 {[%clk 0:02:49.7]} 17... Qxb7 {[%clk 0:02:01.8]} 18. dxc5
{[%clk 0:02:51.4]} 18... Bxc5 {[%clk 0:01:56.6]} 19. Qd3 {[%clk 0:02:39.1]}
19... Ne4 {[%clk 0:01:31.4]} 20. e3 {[%clk 0:02:36.3]} 20... Be7 {[%clk
0:01:26.1]} 21. h4 {[%clk 0:02:30.8]} 21... h6 {[%clk 0:01:16.9]} 22. Qe2 {[%clk
0:02:22.3]} 22... Bf6 {[%clk 0:01:13]} 23. Qg4 {[%clk 0:02:20.6]} 23... Kh7
{[%clk 0:01:06]} 24. Ba3 {[%clk 0:01:58.7]} 24... b4 {[%clk 0:00:59.9]} 25. Bb2
{[%clk 0:01:59.9]} 25... Nd2 {[%clk 0:00:51.1]} 26. Nd6 {[%clk 0:01:46.1]} 26...
Rxc1+ {[%clk 0:00:46.1]} 27. Rxc1 {[%clk 0:01:48]} 27... Qd5 {[%clk 0:00:43.7]}
28. Ndc4 {[%clk 0:01:42.8]} 28... Nxc4 {[%clk 0:00:35.2]} 29. Nxc4 {[%clk
0:01:44.7]} 29... Bxb2 {[%clk 0:00:26.3]} 30. Nxb2 {[%clk 0:01:46.6]} 30... Rb8
{[%clk 0:00:03.6]} 31. Nc4 {[%clk 0:01:33]} 31... Nd7 {[%clk 0:00:04.6]} 32. Rd1
{[%clk 0:01:29.8]} 32... Nf6 {[%clk 0:00:06]} 33. Qe2 {[%clk 0:01:20.6]} 33...
Qe4 {[%clk 0:00:04.5]} 34. Rd3 {[%clk 0:00:58]} 34... Nd5 {[%clk 0:00:05.3]} 35.
Nd2 {[%clk 0:00:40.6]} 35... Qe5 {[%clk 0:00:06.1]} 36. Rd4 {[%clk 0:00:37.6]}
36... a5 {[%clk 0:00:06.7]} 37. Qd3+ {[%clk 0:00:38.5]} 37... Kg8 {[%clk
0:00:07.5]} 38. Nc4 {[%clk 0:00:37.1]} 38... Qf6 {[%clk 0:00:08.8]} 39. e4
{[%clk 0:00:35.3]} 39... Rf8 {[%clk 0:00:08.4]} 40. f3 {[%clk 0:00:30]} 40...
Nc3 {[%clk 0:00:09.2]} 41. Kg2 {[%clk 0:00:28.5]} 41... Ne2 {[%clk 0:00:04.2]}
42. Rd7 {[%clk 0:00:27.2]} 42... Nc1 {[%clk 0:00:02.5]} 43. Qe3 {[%clk
0:00:25.7]} 43... Qc3 {[%clk 0:00:04.1]} 44. Qxc3 {[%clk 0:00:21.7]} 44... bxc3
{[%clk 0:00:06]} 45. Rc7 {[%clk 0:00:23.5]} 45... Nxb3 {[%clk 0:00:06.5]} 46.
Nb6 {[%clk 0:00:20]} 46... Rb8 {[%clk 0:00:05]} 47. Nd7 {[%clk 0:00:19.6]} 47...
Rd8 {[%clk 0:00:04.8]} 48. Rxc3 {[%clk 0:00:18.3]} 48... Rxd7 {[%clk 0:00:06.1]}
49. Rxb3 {[%clk 0:00:19.4]} 49... Ra7 {[%clk 0:00:04.4]} 50. Kf2 {[%clk
0:00:18.7]} 50... a4 {[%clk 0:00:04.7]} 51. Ra3 {[%clk 0:00:19.8]} 51... g5
{[%clk 0:00:03.6]} 52. h5 {[%clk 0:00:16.7]} 52... Kf7 {[%clk 0:00:04.2]} 53.
Ke3 {[%clk 0:00:18.2]} 53... Kf6 {[%clk 0:00:04.9]} 54. Kd4 {[%clk 0:00:14]}
54... Ra5 {[%clk 0:00:06.4]} 55. f4 {[%clk 0:00:05.3]} 55... gxf4 {[%clk
0:00:06.8]} 56. gxf4 {[%clk 0:00:07.2]} 56... Rxh5 {[%clk 0:00:07.8]} 57. Rxa4
{[%clk 0:00:06.7]} 57... e5+ {[%clk 0:00:07.7]} 58. fxe5+ {[%clk 0:00:07.5]}
58... Rxe5 {[%clk 0:00:09.6]} 59. Ra6+ {[%clk 0:00:08.1]} 59... Re6 {[%clk
0:00:11]} 60. Rxe6+ {[%clk 0:00:09.4]} 60... Kxe6 {[%clk 0:00:12.4]} 61. Ke3
{[%clk 0:00:11.1]} 61... h5 {[%clk 0:00:14]} 62. Kf3 {[%clk 0:00:12.5]} 62... h4
{[%clk 0:00:15.8]} 63. Kg4 {[%clk 0:00:13.6]} 63... Ke5 {[%clk 0:00:17.7]} 64.
Kxh4 {[%clk 0:00:14.9]} 64... Kxe4 {[%clk 0:00:19.6]} 1/2-1/2